Workbook

Sheet Duration Tool
B2: MSFT | C2: Inputs | D2: Description
B4: ROE | C4: 0.4892097012 | D4: Current Earnings / Prior Year Book Value
B5: Terminal ROE | C5: 0.12 | D5: Assumes ROE normalizes to 12%
B6: Sales Growth | C6: 0.1533536651 | D6: Trailing 1-Year Sales Growth
B7: Terminal Growth | C7: 0.02 | D7: Assumes sales growth normalizes to 2%
B8: Years to Terminal | C8: 15 | D8: Calculations of cash flows are estimated for next 15 years
B9: Discount Rate | C9: 0.06 | D9: All cash flows are discounted back at a 6% rate
B10: Market Value | C10: 2040960.6 | D10: Current market cap
B11: % Mcap Unexplained | C11: 0.7435750154 | D11: % of market cap not explained by the 15 years of discounted cash flows
B12: Duration | C12: 44.89360897 | D12: Duration = 15 year DCF + Unexplained market cap
B13: Definitions
B14: FCF = (ROE - BV Growth) * BV-1
B15: BV Growth = Sales Growth
B16: ROE normalizes at 1/15th of spread to terminal
B17: Sales growth normalizes at 1/15th of spread to terminal
B18: TV = Market Cap - 15 year DCF
B19: TV Cash Flows = Unexplained market cap divided by 15th year discounted cash flow
B21: © Kailash Capital, LLC
A101: ='Duration Tool'!B2 -> MSFT | B101: Curr | C101: Tgt | D101: NumPers
A102: ROE | B102: =IF(ISNUMBER(INDEX(Lookup!$D$2:$P$2359,MATCH($A$101,Lookup!$C$2:$C$2359,0),MATCH("np_roe",Lookup!$D$1:$P$1,0))),INDEX(Lookup!$D$2:$P$2359,MATCH($A$101,Lookup!$C$2:$C$2359,0),MATCH("np_roe",Lookup!$D$1:$P$1,0)),NA()) -> 0.550141014 | C102: ='Duration Tool'!C5 -> 0.12 | D102: 15
A103: Sales Growth | B103: =IF(ISNUMBER(INDEX(Lookup!$D$2:$P$2359,MATCH($A$101,Lookup!$C$2:$C$2359,0),MATCH("SALE_1YR_GRTH",Lookup!$D$1:$P$1,0))),INDEX(Lookup!$D$2:$P$2359,MATCH($A$101,Lookup!$C$2:$C$2359,0),MATCH("SALE_1YR_GRTH",Lookup!$D$1:$P$1,0)),NA()) -> 0.1980572889 | C103: ='Duration Tool'!C7 -> 0.02 | D103: 15
A104: Book Value | B104: =IF(ISNUMBER(INDEX(Lookup!$D$2:$P$2359,MATCH($A$101,Lookup!$C$2:$C$2359,0),MATCH("SEQQR_ADJ",Lookup!$D$1:$P$1,0))),INDEX(Lookup!$D$2:$P$2359,MATCH($A$101,Lookup!$C$2:$C$2359,0),MATCH("SEQQR_ADJ",Lookup!$D$1:$P$1,0)),NA()) -> 151978
A105: Book Value (1-Year Ago) | B105: =IF(ISNUMBER(INDEX(Lookup!$D$2:$P$2359,MATCH($A$101,Lookup!$C$2:$C$2359,0),MATCH("SEQ_1YR_VAL",Lookup!$D$1:$P$1,0))),INDEX(Lookup!$D$2:$P$2359,MATCH($A$101,Lookup!$C$2:$C$2359,0),MATCH("SEQ_1YR_VAL",Lookup!$D$1:$P$1,0)),NA()) -> 123392
A106: Earnings | B106: =IF(ISNUMBER(INDEX(Lookup!$D$2:$P$2359,MATCH($A$101,Lookup!$C$2:$C$2359,0),MATCH("IBQR_R4Q",Lookup!$D$1:$P$1,0))),INDEX(Lookup!$D$2:$P$2359,MATCH($A$101,Lookup!$C$2:$C$2359,0),MATCH("IBQR_R4Q",Lookup!$D$1:$P$1,0)),NA()) -> 67883
A107: Market Value | B107: =IF(ISNUMBER(INDEX(Lookup!$D$2:$P$2359,MATCH($A$101,Lookup!$C$2:$C$2359,0),MATCH("NP_MCAP",Lookup!$D$1:$P$1,0))),INDEX(Lookup!$D$2:$P$2359,MATCH($A$101,Lookup!$C$2:$C$2359,0),MATCH("NP_MCAP",Lookup!$D$1:$P$1,0)),NA()) -> 2490466.2
A108: Discount Rate | B108: ='Duration Tool'!C9 -> 0.06
A109: TV Growth in FCF | B109: =E129/E128-1 -> -0.1165914581
A110: % Mcap Unexplained | B110: =F130/B107 -> 0.7103116
A111: Duration | B111: =IF(OR(F133<0,F133>100),100,F133) -> 36.39220613
A112: Duration (CHECK) | B112: =IF(ISNUMBER(INDEX(Lookup!$D$2:$P$2359,MATCH($A$101,Lookup!$C$2:$C$2359,0),MATCH("duration",Lookup!$D$1:$P$1,0))),INDEX(Lookup!$D$2:$P$2359,MATCH($A$101,Lookup!$C$2:$C$2359,0),MATCH("duration",Lookup!$D$1:$P$1,0)),NA()) -> 36.39220613
A114: Period | B114: ROE | C114: BV Growth | D114: BV(t-1) | E114: Cash Flow | F114: Current Value | G114: TW CV
A115: 1 | B115: =IF($A115<=$D$102,B102-($B$102-$C$102)/$D$102,$C$102) -> 0.5214649464 | C115: =IF($A115<=$D$103,B103-($B$103-$C$103)/$D$103,$C$103) -> 0.186186803 | D115: =B104 -> 151978 | E115: =D115*(B115-C115) -> 50954.90168 | F115: =E115/(1+$B$108)^A115 -> 48070.66196 | G115: =A115*F115 -> 48070.66196
A116: 2 | B116: =IF($A116<=$D$102,B115-($B$102-$C$102)/$D$102,$C$102) -> 0.4927888788 | C116: =IF($A116<=$D$103,C115-($B$103-$C$103)/$D$103,$C$103) -> 0.174316317 | D116: =ABS(D115)*C115+D115 -> 180274.2979 | E116: 57412.41748 | F116: =IF(SUM($F$115:F115)>$B$107,0,E116/(1+$B$108)^A116) -> 51096.84717 | G116: 102193.6943
A117: 3 | B117: 0.4641128112 | C117: 0.1624458311 | D117: 211699.0496 | E117: 63862.61298 | F117: =IF(SUM($F$115:F116)>$B$107,0,E117/(1+$B$108)^A117) -> 53620.28133 | G117: 160860.844
A118: 4 | B118: 0.4354367436 | C118: 0.1505753452 | D118: 246088.6777 | E118: 70101.16486 | F118: =IF(SUM($F$115:F117)>$B$107,0,E118/(1+$B$108)^A118) -> 55526.68847 | G118: 222106.7539
A119: 5 | B119: 0.406760676 | C119: 0.1387048593 | D119: 283143.5653 | E119: 75898.27964 | F119: =IF(SUM($F$115:F118)>$B$107,0,E119/(1+$B$108)^A119) -> 56715.60977 | G119: 283578.0488
A120: 6 | B120: 0.3780846084 | C120: 0.1268343733 | D120: 322416.9536 | E120: 81007.33539 | F120: =IF(SUM($F$115:F119)>$B$107,0,E120/(1+$B$108)^A120) -> 57106.97494 | G120: 342641.8496
A121: 7 | B121: 0.3494085408 | C121: 0.1149638874 | D121: 363310.5059 | E121: 85176.20563 | F121: =IF(SUM($F$115:F120)>$B$107,0,E121/(1+$B$108)^A121) -> 56647.04147 | G121: 396529.2903
A122: 8 | B122: 0.3207324732 | C122: 0.1030934015 | D122: 405078.094 | E122: 88160.82035 | F122: =IF(SUM($F$115:F121)>$B$107,0,E122/(1+$B$108)^A122) -> 55313.18936 | G122: 442505.5149
A123: 9 | B123: 0.2920564056 | C123: 0.09122291556 | D123: 446838.9726 | E123: 89740.23035 | F123: =IF(SUM($F$115:F122)>$B$107,0,E123/(1+$B$108)^A123) -> 53117.10446 | G123: 478053.9402
A124: 10 | B124: 0.263380338 | C124: 0.07935242963 | D124: 487600.9265 | E124: 89732.17861 | F124: =IF(SUM($F$115:F123)>$B$107,0,E124/(1+$B$108)^A124) -> 50105.97986 | G124: 501059.7986
A125: 11 | B125: 0.2347042704 | C125: 0.06748194371 | D125: 526293.2447 | E125: 88007.9809 | F125: =IF(SUM($F$115:F124)>$B$107,0,E125/(1+$B$108)^A125) -> 46361.50647 | G125: 509976.5712
A126: 12 | B126: 0.2060282028 | C126: 0.05561145778 | D126: 561808.5358 | E126: 84505.41128 | F126: =IF(SUM($F$115:F125)>$B$107,0,E126/(1+$B$108)^A126) -> 41996.60046 | G126: 503959.2055
A127: 13 | B127: 0.1773521352 | C127: 0.04374097185 | D127: 593051.5274 | E127: 79238.30451 | F127: =IF(SUM($F$115:F126)>$B$107,0,E127/(1+$B$108)^A127) -> 37150.00921 | G127: 482950.1197
A128: 14 | B128: 0.1486760676 | C128: 0.03187048593 | D128: 618992.1776 | E128: 72301.74136 | F128: =IF(SUM($F$115:F127)>$B$107,0,E128/(1+$B$108)^A128) -> 31979.12993 | G128: 447707.819
A129: 15 | B129: 0.12 | C129: 0.02 | D129: 638719.7591 | E129: 63871.97591 | F129: =IF(SUM($F$115:F128)>$B$107,0,E129/(1+$B$108)^A129) -> 26651.54391 | G129: 399773.1586
A130: TV | F130: =IF(B107-SUM(F115:F129)>0,B107-SUM(F115:F129),0) -> 1769007.031
E131: Additional Periods | F131: =IF(F130>0,ROUND(F130/F129,0),0) -> 66
F133: =SUMPRODUCT(F115:F129,A115:A129)/B107+F131/2*(16+F131+15)*F129/B107 -> 36.39220613
A135: OUTPUT | B135: =UPPER(TicCell) -> MSFT
A136: ROE | B136: =B102 -> 0.550141014
A137: Terminal ROE | B137: ='Duration Tool'!C5 -> 0.12
A138: Sales Growth | B138: =B103 -> 0.1980572889
A139: Terminal Growth | B139: ='Duration Tool'!C7 -> 0.02
A140: Years to Terminal | B140: =D102 -> 15
A141: Discount Rate | B141: ='Duration Tool'!C9 -> 0.06
A142: Market Value | B142: =B107 -> 2490466.2
A143: % Mcap Unexplained | B143: =B110 -> 0.7103116
A144: Duration | B144: =B111 -> 36.39220613

Sheet Lookup (hidden)
A1: caldt | B1: gvkey | C1: tic | D1: np_mcap | E1: gsector | F1: conm | G1: SEQqr | H1: IBqr_r4q | I1: seqqr_adj | J1: SEQ_1YR_VAL | K1: SEQ_1YR_GRTH | L1: SALE_1YR_GRTH | M1: np_bb_5yr | N1: flag_tstk0_decseq_bb | O1: np_roe | P1: duration
A2: 2021-10-31 | B2: 1004 | C2: AIR | D2: 1254.60927 | E2: 20 | F2: AAR CORP | G2: 988.2 | H2: 71.4 | I2: 1259.8 | J2: 1166.7 | K2: 0.0797977201 | L2: -0.125115468 | M2: 8.2 | O2: 0.0611982515 | P2: 5.61693039
A3: 2021-10-31 | B3: 1045 | C3: AAL | D3: 12431.5584 | E3: 20 | F3: AMERICAN AIRLINES GROUP INC | G3: -7437 | H3: -3239 | I3: -6563 | J3: 2602 | L3: -0.005645358 | M3: 874 | N3: 1 | O3: -1.244811683
A4: 2021-10-31 | B4: 1075 | C4: PNW | D4: 7273.44016 | E4: 55 | F4: PINNACLE WEST CAPITAL CORP | G4: 5717.624 | H4: 578.319 | I4: 5720.703 | J4: 5492.752 | K4: 0.0415003262 | L4: 0.0693625681 | M4: 22.412 | O4: 0.1052876591 | P4: 10.68537341
A5: 2021-10-31 | B5: 1076 | C5: PRG | D5: 2689.925 | E5: 40 | F5: PROG HOLDINGS INC | G5: 1063.335 | H5: 265.273 | I5: 1748.99 | J5: 2140.456 | K5: -0.182889067 | L5: -0.366165992 | M5: 430.777 | O5: 0.1239329377 | P5: 24.06100325
A6: 2021-10-31 | B6: 1078 | C6: ABT | D6: 228498.3831 | E6: 35 | F6: ABBOTT LABORATORIES | G6: 33800 | H6: 6372 | I6: 44140 | J6: 40482 | K6: 0.0903611482 | L6: 0.2795127846 | M6: 839 | O6: 0.1574032904 | P6: 23.2522294
A7: 2021-10-31 | B7: 1161 | C7: AMD | D7: 145718.76 | E7: 45 | F7: ADVANCED MICRO DEVICES | G7: 7136 | H7: 3969 | I7: 8492 | J7: 3993 | K7: 1.126721763 | L7: 0.7177885728 | M7: 976 | O7: 0.9939894816 | P7: 8.195875005
A8: 2021-10-31 | B8: 1209 | C8: APD | D8: 66367.44065 | E8: 15 | F8: AIR PRODUCTS & CHEMICALS INC | G8: 13082.9 | H8: 1957 | I8: 15072.9 | J8: 13667.7 | K8: 0.1028117386 | L8: 0.1114134748 | M8: -320 | O8: 0.1431842958 | P8: 26.61617992
A9: 2021-10-31 | B9: 1230 | C9: ALK | D9: 6612.0912 | E9: 20 | F9: ALASKA AIR GROUP INC | G9: 3324 | H9: -612 | I9: 3998 | J9: 4535 | K9: -0.118412348 | L9: -0.42568175 | M9: 231 | O9: -0.134950386 | P9: 100
A10: 2021-10-31 | B10: 1234 | C10: ATRI | D10: 1318.408 | E10: 35 | F10: ATRION CORP | G10: 240.721 | H10: 31.264 | I10: 408.766 | J10: 382.856 | K10: 0.0676755752 | L10: -0.045328961 | M10: 38.363 | O10: 0.0816599453 | P10: 35.61158987
A11: 2021-10-31 | B11: 1254 | C11: MATX | D11: 3619.3488 | E11: 20 | F11: MATSON INC | G11: 1172.8 | H11: 406.2 | I11: 1172.8 | J11: 815.5 | K11: 0.4381361128 | L11: 0.3632136879 | M11: 48.9 | O11: 0.4980993256 | P11: 7.887281001
A12: 2021-10-31 | B12: 1257 | C12: ALX | D12: 1423.72946 | E12: 60 | F12: ALEXANDER'S INC | G12: 205.805 | H12: 68.816 | I12: 206.173 | J12: 225.339 | K12: -0.085054074 | L12: 0.0021432457 | M12: 0 | O12: 0.3053887698 | P12: 47.16305673
A13: 2021-10-31 | B13: 1274 | C13: Y | D13: 9047.01682 | E13: 40 | F13: ALLEGHANY CORP | G13: 9142.031 | H13: 919.286 | I13: 10885.465 | J13: 9951.714 | K13: 0.0938281586 | L13: 0.3147944999 | M13: 961.014 | O13: 0.0923746402 | P13: 36.99787834
A14: 2021-10-31 | B14: 1300 | C14: HON | D14: 150503.0363 | E14: 20 | F14: HONEYWELL INTERNATIONAL INC | G14: 17842 | H14: 5473 | I14: 47456 | J14: 43880 | K14: 0.0814949863 | L14: 0.0421869828 | M14: 15843 | O14: 0.1247265269 | P14: 23.02330149
A15: 2021-10-31 | B15: 1327 | C15: SWKS | D15: 27593.163 | E15: 45 | F15: SKYWORKS SOLUTIONS INC | G15: 5002.8 | H15: 1418.9 | I15: 5002.9 | J15: 8042.7 | K15: -0.377957651 | L15: 0.4738245049 | M15: 2839.2 | O15: 0.1764208537 | P15: 29.23902702
A16: 2021-10-31 | B16: 1380 | C16: HES | D16: 25569.69961 | E16: 10 | F16: HESS CORP | G16: 5488 | H16: -161 | I16: 5488 | J16: 6395 | K16: -0.141829554 | L16: 0.0930275229 | M16: 1343 | O16: -0.025175919 | P16: 42.39113943
A17: 2021-10-31 | B17: 1393 | C17: UHAL | D17: 14450.89992 | E17: 20 | F17: AMERCO | G17: 5111.528 | H17: 868.305 | I17: 5789.178 | J17: 4934.832 | K17: 0.1731256505 | L17: 0.2934886191 | M17: 19.854 | O17: 0.1759543182 | P17: 19.47607566
A18: 2021-10-31 | B18: 1410 | C18: ABM | D18: 2959.01235 | E18: 20 | F18: ABM INDUSTRIES INC | G18: 1580.3 | H18: 145.1 | I18: 1580.3 | J18: 1451.3 | K18: 0.0888858265 | L18: -0.02168753 | M18: 38.5 | O18: 0.0999793289 | P18: 14.90046413
A19: 2021-10-31 | B19: 1414 | C19: PRI | D19: 6636.05856 | E19: 40 | F19: PRIMERICA INC | G19: 2018.763 | H19: 438.218 | I19: 2018.763 | J19: 1642.68 | K19: 0.2289447732 | L19: 0.1691694828 | M19: 897.036 | O19: 0.2667701561 | P19: 13.31016486
A20: 2021-10-31 | B20: 1439 | C20: ECOL | D20: 1006.29159 | E20: 20 | F20: US ECOLOGY INC | G20: 609.583 | H20: -91.049 | I20: 620.616 | J20: 689.313 | K20: -0.099660096 | L20: 0.1116830031 | M20: 14.868 | O20: -0.132086585 | P20: 43.2112384
A21: 2021-10-31 | B21: 1440 | C21: AEP | D21: 42657.32999 | E21: 55 | F21: AMERICAN ELECTRIC POWER CO | G21: 22351.4 | H21: 2384.7 | I21: 22351.4 | J21: 20438.4 | K21: 0.0935983247 | L21: 0.0949684734 | M21: -854.1 | O21: 0.1166774307 | P21: 15.69258378
A22: 2021-10-31 | B22: 1447 | C22: AXP | D22: 135200.84 | E22: 40 | F22: AMERICAN EXPRESS CO | G22: 24426 | H22: 7779 | I22: 24426 | J22: 21869 | K22: 0.116923499 | L22: 0.0087909382 | M22: 9641 | O22: 0.3557089945 | P22: 29.0820501
A23: 2021-10-31 | B23: 1449 | C23: AFL | D23: 36065.7033 | E23: 40 | F23: AFLAC INC | G23: 33735 | H23: 5806 | I23: 50781 | J23: 44447 | K23: 0.1425068059 | L23: 0.0553134273 | M23: 7160 | O23: 0.1306274889 | P23: 5.847329502
A24: 2021-10-31 | B24: 1487 | C24: AIG | D24: 50517.69552 | E24: 40 | F24: AMERICAN INTERNATIONAL GROUP | G24: 66083 | H24: 4205 | I24: 115717 | J24: 111561 | K24: 0.0372531619 | L24: -0.081816864 | M24: 13833 | O24: 0.0376923835 | P24: 3.469790188
A25: 2021-10-31 | B25: 1526 | C25: ANAT | D25: 5100.73277 | E25: 40 | F25: AMERICAN NATIONAL GROUP INC | G25: 6762.044 | H25: 875.553 | I25: 6762.044 | J25: 5709.474 | K25: 0.1843549861 | L25: 0.3292396118 | M25: 0 | O25: 0.1533509041 | P25: 32.1104474
A26: 2021-10-31 | B26: 1562 | C26: AMSWA | D26: 962.26966 | E26: 45 | F26: AMERICAN SOFTWARE -CL A | G26: 126.534 | H26: 9.002 | I26: 152.093 | J26: 144.981 | K26: 0.0490547037 | L26: -0.017884052 | M26: -38.653 | O26: 0.0620908947 | P26: 70.95220924
A27: 2021-10-31 | B27: 1598 | C27: AME | D27: 30611.6744 | E27: 20 | F27: AMETEK INC | G27: 6343.299 | H27: 876.518 | I27: 7913.995 | J27: 7056.348 | K27: 0.1215426167 | L27: 0.0276051309 | M27: 388.453 | O27: 0.1242169462 | P27: 30.55496412
A28: 2021-10-31 | B28: 1602 | C28: AMGN | D28: 117890.112 | E28: 35 | F28: AMGEN INC | G28: 8247 | H28: 5746 | I28: 44796 | J28: 44901 | K28: -0.226287644 | L28: 0.0486811242 | M28: 36549 | N28: 1 | O28: 0.1279704238 | P28: 19.08068495
A29: 2021-10-31 | B29: 1632 | C29: ADI | D29: 63881.44686 | E29: 45 | F29: ANALOG DEVICES | G29: 12263.963 | H29: 1701.261 | I29: 12263.963 | J29: 11777.56 | K29: 0.0412991316 | L29: 0.1784486538 | M29: 1145.809 | O29: 0.1444493596 | P29: 26.76341339
A30: 2021-10-31 | B30: 1659 | C30: ANDE | D30: 1146.9705 | E30: 30 | F30: ANDERSONS INC | G30: 1022.5 | H30: 73.538 | I30: 1025.15 | J30: 940.341 | K30: 0.0901896227 | L30: 0.362991359 | M30: 0.255 | O30: 0.0782035453 | P30: 47.89565702
A31: 2021-10-31 | B31: 1678 | C31: APA | D31: 9907.82557 | E31: 10 | F31: APA CORP | G31: -964 | H31: 710 | I31: 2224 | J31: 1554 | K31: 0.4311454311 | L31: 0.242014742 | M31: 302 | O31: 0.4568854569 | P31: 9.207970611
A32: 2021-10-31 | B32: 1686 | C32: APOG | D32: 1064.77042 | E32: 20 | F32: APOGEE ENTERPRISES INC | G32: 476.561 | H32: 3.603 | I32: 476.561 | J32: 526.168 | K32: -0.094279774 | L32: -0.007474332 | M32: 166.92 | O32: 0.0068476228 | P32: 27.76976318
A33: 2021-10-31 | B33: 1690 | C33: AAPL | D33: 2480229.912 | E33: 45 | F33: APPLE INC | G33: 64280 | H33: 86802 | I33: 64280 | J33: 72282 | K33: -0.110705293 | L33: 0.2676506352 | M33: 327091 | O33: 1.200879887 | P33: 43.90501448
A34: 2021-10-31 | B34: 1704 | C34: AMAT | D34: 123385.2478 | E34: 45 | F34: APPLIED MATERIALS INC | G34: 12060 | H34: 5307 | I34: 38555 | J34: 33764 | K34: 0.1418966947 | L34: 0.3294811901 | M34: 11785 | O34: 0.1571792442 | P34: 22.45037498
A35: 2021-10-31 | B35: 1706 | C35: EPAC | D35: 1258.03758 | E35: 20 | F35: ENERPAC TOOL GROUP CORP | G35: 412.198 | H35: 40.212 | I35: 1079.93 | J35: 1026.958 | K35: 0.0515814668 | L35: 0.071697899 | M35: 56.24 | O35: 0.0391564212 | P35: 17.1790327
A36: 2021-10-31 | B36: 1722 | C36: ADM | D36: 35910.16 | E36: 30 | F36: ARCHER-DANIELS-MIDLAND CO | G36: 21969 | H36: 2614 | I36: 21969 | J36: 19322 | K36: 0.1369941 | L36: 0.2779797786 | M36: 1356 | O36: 0.1352862023 | P36: 22.20819759
A37: 2021-10-31 | B37: 1743 | C37: ARCB | D37: 2294.2299 | E37: 20 | F37: ARCBEST CORP | G37: 898.134 | H37: 137.66 | I37: 1017.407 | J37: 882.831 | K37: 0.1524368764 | L37: 0.1961464491 | M37: 58.794 | O37: 0.1559301837 | P37: 15.54379461
A38: 2021-10-31 | B38: 1773 | C38: ARW | D38: 8349.9735 | E38: 45 | F38: ARROW ELECTRONICS INC | G38: 5164.922 | H38: 849.093 | I38: 8299.406 | J38: 7237.45 | K38: 0.1467306855 | L38: 0.1908386077 | M38: 1772.02 | O38: 0.1173193597 | P38: 15.19524569
A39: 2021-10-31 | B39: 1794 | C39: ASH | D39: 5830.97533 | E39: 15 | F39: ASHLAND GLOBAL HOLDINGS INC | G39: 3202 | H39: 190 | I39: 3202 | J39: 3013 | K39: 0.0627281779 | L39: 0.0296646604 | M39: -487 | O39: 0.063060073 | P39: 17.80897428
A40: 2021-10-31 | B40: 1878 | C40: ADSK | D40: 69842.439 | E40: 45 | F40: AUTODESK INC | G40: 1327.8 | H40: 1314.7 | I40: 1327.8 | J40: 67.3 | K40: 18.72956909 | L40: 0.1411545413 | M40: 2491.7 | O40: 19.53491828 | P40: 3.140013534
A41: 2021-10-31 | B41: 1891 | C41: ADP | D41: 95116.413 | E41: 45 | F41: AUTOMATIC DATA PROCESSING | G41: 5670.1 | H41: 2598.5 | I41: 21056.9 | J41: 19819.2 | K41: 0.0624495439 | L41: 0.0284856544 | M41: 5148.8 | O41: 0.1311102365 | P41: 35.20648374
A42: 2021-10-31 | B42: 1913 | C42: AVY | D42: 18060.30944 | E42: 15 | F42: AVERY DENNISON CORP | G42: 1703.6 | H42: 735.3 | I42: 4280.3 | J42: 3661.1 | K42: 0.1691294966 | L42: 0.1602611335 | M42: 1072.3 | O42: 0.2008412772 | P42: 20.00254811
A43: 2021-10-31 | B43: 1919 | C43: AVT | D43: 3795.79411 | E43: 45 | F43: AVNET INC | G43: 4084.184 | H43: 193.114 | I43: 4084.184 | J43: 3726.398 | K43: 0.0960138987 | L43: 0.1077639852 | M43: 1405.954 | O43: 0.0518232352 | P43: 16.55788049
A44: 2021-10-31 | B44: 1926 | C44: AZZ | D44: 1319.7492 | E44: 20 | F44: AZZ INC | G44: 638.426 | H44: 77.178 | I44: 638.426 | J44: 631.541 | K44: 0.010901905 | L44: -0.088800715 | M44: 82.413 | O44: 0.1222058425 | P44: 17.28264703
A45: 2021-10-31 | B45: 1968 | C45: BMI | D45: 2983.246 | E45: 45 | F45: BADGER METER INC | G45: 381.847 | H45: 55.708 | I45: 419.236 | J45: 378.137 | K45: 0.108688121 | L45: 0.1221631969 | M45: 10.072 | O45: 0.1473222668 | P45: 37.58233776
A46: 2021-10-31 | B46: 1979 | C46: BCPC | D46: 4960.88145 | E46: 15 | F46: BALCHEM CORP -CL B | G46: 869.642 | H46: 89.872 | I46: 878.114 | J46: 802.157 | K46: 0.0946909396 | L46: 0.1054534539 | M46: 3.984 | O46: 0.1120379178 | P46: 35.38672565
A47: 2021-10-31 | B47: 1988 | C47: BLL | D47: 29893.01108 | E47: 15 | F47: BALL CORP | G47: 3639 | H47: 870 | I47: 6894 | J47: 5907 | K47: 0.1670898933 | L47: 0.1351039261 | M47: 1919 | O47: 0.1472828847 | P47: 24.96207193
A48: 2021-10-31 | B48: 2002 | C48: BPOP | D48: 6568.62464 | E48: 40 | F48: POPULAR INC | G48: 5814.614 | H48: 825.403 | I48: 7105.041 | J48: 6796.651 | K48: 0.0453738172 | L48: -0.020903642 | M48: 1296.775 | O48: 0.1214426046 | P48: 5.323258583
A49: 2021-10-31 | B49: 2005 | C49: BOH | D49: 3419.2925 | E49: 40 | F49: BANK OF HAWAII CORP | G49: 1583.531 | H49: 207.636 | I49: 2617.804 | J49: 2392.802 | K49: 0.0940328535 | L49: -0.093680461 | M49: 98.872 | O49: 0.0867752534 | P49: 8.705843664
A50: 2021-10-31 | B50: 2019 | C50: BK | D50: 51099.9008 | E50: 40 | F50: BANK OF NEW YORK MELLON CORP | G50: 45281 | H50: 3636 | I50: 66431 | J50: 63529 | K50: 0.0456799257 | L50: -0.161863112 | M50: 9813 | O50: 0.0572337043 | P50: 3.496410278
A51: 2021-10-31 | B51: 2049 | C51: B | D51: 2120.73804 | E51: 20 | F51: BARNES GROUP INC | G51: 1390.393 | H51: 76.948 | I51: 1912.805 | J51: 1771.467 | K51: 0.0797858498 | L51: -0.097782599 | M51: 262.02 | O51: 0.0434374448 | P51: 8.840545606
A52: 2021-10-31 | B52: 2086 | C52: BAX | D52: 39531.08712 | E52: 35 | F52: BAXTER INTERNATIONAL INC | G52: 8770 | H52: 1214 | I52: 20299 | J52: 19138 | K52: 0.0606646463 | L52: 0.0797849276 | M52: 4013 | O52: 0.0634340056 | P52: 19.41359217
A53: 2021-10-31 | B53: 2101 | C53: AIT | D53: 3754.53968 | E53: 20 | F53: APPLIED INDUSTRIAL TECH INC | G53: 932.546 | H53: 144.757 | I53: 1388.335 | J53: 1257.632 | K53: 0.1039278581 | L53: -0.002998781 | M53: 97.198 | O53: 0.1151028282 | P53: 21.96813928
A54: 2021-10-31 | B54: 2111 | C54: BDX | D54: 68807.8521 | E54: 35 | F54: BECTON DICKINSON & CO | G54: 24135 | H54: 1955 | I54: 31162 | J54: 30167 | K54: 0.032983061 | L54: 0.1761541644 | M54: -6524 | O54: 0.0648059137 | P54: 22.94828135
A55: 2021-10-31 | B55: 2136 | C55: VZ | D55: 219387.2904 | E55: 50 | F55: VERIZON COMMUNICATIONS INC | G55: 77044 | H55: 22040 | I55: 83674 | J55: 71790 | K55: 0.1655383758 | L55: 0.0456708861 | M55: 0 | O55: 0.3070065469 | P55: 8.163869231
A56: 2021-10-31 | B56: 2176 | C56: BRK.B | D56: 650606.8964 | E56: 40 | F56: BERKSHIRE HATHAWAY | G56: 470409 | H56: 105777 | I56: 515855 | J56: 408310 | K56: 0.2633905611 | L56: 0.4017628181 | M56: 43462 | O56: 0.2590605177 | P56: 18.3426651
A57: 2021-10-31 | B57: 2184 | C57: BBY | D57: 30229.952 | E57: 25 | F57: BEST BUY CO INC | G57: 4335 | H57: 2536 | I57: 4335 | J57: 3778 | K57: 0.147432504 | L57: 0.2036286609 | M57: 6127 | O57: 0.6712546321 | P57: 8.487064134
A58: 2021-10-31 | B58: 2220 | C58: BIO | D58: 23660.00764 | E58: 35 | F58: BIO-RAD LABORATORIES INC | G58: 11594.88 | H58: 4045.454 | I58: 11744.342 | J58: 7491.439 | K58: 0.567701746 | L58: 0.2416618525 | M58: 165.259 | O58: 0.5400102704 | P58: 4.982334064
A59: 2021-10-31 | B59: 2259 | C59: BKH | D59: 4213.8024 | E59: 55 | F59: BLACK HILLS CORP | G59: 2659.04 | H59: 234.945 | I59: 2662.028 | J59: 2515.171 | K59: 0.0583884754 | L59: 0.1030581238 | M59: -610.044 | O59: 0.0934111438 | P59: 16.0351074
A60: 2021-10-31 | B60: 2269 | C60: HRB | D60: 4186.42062 | E60: 25 | F60: BLOCK H & R INC | G60: 352.401 | H60: 590.212 | I60: 1038.751 | J60: 769.058 | K60: 0.3506796627 | L60: 0.2933140636 | M60: 931.959 | O60: 0.7674479688 | P60: 5.672863685
A61: 2021-10-31 | B61: 2270 | C61: VAL | D61: 2641.5 | E61: 10 | F61: VALARIS LTD | G61: 1089.5 | H61: -5215 | I61: 1089.5 | J61: 9795.6 | K61: -0.888776594 | L61: -0.350442381 | M61: -585.8 | O61: -0.532381886 | P61: 100
A62: 2021-10-31 | B62: 2285 | C62: BA | D62: 121624.3282 | E62: 20 | F62: BOEING CO | G62: -14440 | H62: -8479 | I62: 37590 | J62: 42998 | K62: -0.125773292 | L62: -0.013018791 | M62: 21225 | O62: -0.197195218 | P62: 66.67304445
A63: 2021-10-31 | B63: 2312 | C63: RHI | D63: 12660.4479 | E63: 20 | F63: ROBERT HALF INTL INC | G63: 1259.25 | H63: 429.976 | I63: 1259.25 | J63: 1156.706 | K63: 0.0886517404 | L63: -0.040597532 | M63: 1261.596 | O63: 0.371724535 | P63: 95.18205006
A64: 2021-10-31 | B64: 2337 | C64: RFP | D64: 930.216 | E64: 15 | F64: RESOLUTE FOREST PRODUCTS INC | G64: 1385 | H64: 360 | I64: 1579 | J64: 1394 | K64: 0.1327116212 | L64: 0.3133881825 | M64: 74 | O64: 0.2582496413 | P64: 14.10634128
A65: 2021-10-31 | B65: 2352 | C65: BRC | D65: 2712.17003 | E65: 20 | F65: BRADY CORP | G65: 963.028 | H65: 129.659 | I65: 1072.089 | J65: 970.288 | K65: 0.1049183335 | L65: 0.0586322562 | M65: 22.03 | O65: 0.1336293966 | P65: 17.97989329
A66: 2021-10-31 | B66: 2403 | C66: BMY | D66: 129627.268 | E66: 35 | F66: BRISTOL-MYERS SQUIBB CO | G66: 37213 | H66: -5405 | I66: 65785 | J66: 75442 | K66: -0.12800562 | L66: 0.1541566189 | M66: 15134 | O66: -0.071644442 | P66: 37.11970098
A67: 2021-10-31 | B67: 2435 | C67: BF.B | D67: 32508.99072 | E67: 30 | F67: BROWN FORMAN CORP | G67: 2683 | H67: 771 | I67: 2915 | J67: 2398 | K67: 0.2155963303 | L67: 0.0788059701 | M67: 654 | O67: 0.3215179316 | P67: 56.50733643
A68: 2021-10-31 | B68: 2436 | C68: CAL | D68: 882.46008 | E68: 25 | F68: CALERES INC | G68: 240.697 | H68: -19.016 | I68: 240.697 | J68: 242.24 | K68: -0.006369716 | L68: 0.0596873163 | M68: 122.357 | O68: -0.078500661 | P68: 45.67163282
A69: 2021-10-31 | B69: 2444 | C69: BC | D69: 7219.50186 | E69: 25 | F69: BRUNSWICK CORP | G69: 1769.5 | H69: 581.6 | I69: 2951.7 | J69: 2415.6 | K69: 0.2219324391 | L69: 0.3988823912 | M69: 857.1 | O69: 0.2407683391 | P69: 20.31837518
A70: 2021-10-31 | B70: 2448 | C70: MTRN | D70: 1475.21484 | E70: 15 | F70: MATERION CORP | G70: 681.701 | H70: 48.172 | I70: 890.555 | J70: 803.666 | K70: 0.1081158093 | L70: 0.1908240383 | M70: 20.087 | O70: 0.0599403235 | P70: 22.1487924
A71: 2021-10-31 | B71: 2497 | C71: MTZ | D71: 6623.60682 | E71: 20 | F71: MASTEC INC | G71: 2158.362 | H71: 370.713 | I71: 2745.317 | J71: 2333.666 | K71: 0.176396708 | L71: 0.0538478604 | M71: 435.996 | O71: 0.1588543519 | P71: 14.82794719
A72: 2021-10-31 | B72: 2504 | C72: UIS | D72: 1716.15612 | E72: 45 | F72: UNISYS CORP | G72: -308.8 | H72: -486.6 | I72: -156.7 | J72: -160 | L72: -0.140910207 | M72: -3.7
A73: 2021-10-31 | B73: 2536 | C73: RAMP | D73: 3650.4522 | E73: 45 | F73: LIVERAMP HOLDINGS INC | G73: 1080.596 | H73: -51.175 | I73: 3147.552 | J73: 3076.714 | K73: 0.0230239145 | L73: 0.1638473653 | M73: 968.362 | O73: -0.016633005 | P73: 30.67638449
A74: 2021-10-31 | B74: 2547 | C74: CI | D74: 72976.43874 | E74: 35 | F74: CIGNA CORP | G74: 48709 | H74: 8151 | I74: 58843 | J74: 50967 | K74: 0.1545313634 | L74: 0.0799572733 | M74: 11695 | O74: 0.1599270116 | P74: 8.282208213
A75: 2021-10-31 | B75: 2558 | C75: CNA | D75: 12172.761 | E75: 40 | F75: CNA FINANCIAL CORP | G75: 12668 | H75: 1280 | I75: 12741 | J75: 11716 | K75: 0.087487197 | L75: 0.0794044665 | M75: 59 | O75: 0.1092523045 | P75: 8.857608853
A76: 2021-10-31 | B76: 2574 | C76: CSX | D76: 80224.44511 | E76: 20 | F76: CSX CORP | G76: 13163 | H76: 3607 | I76: 13163 | J76: 12713 | K76: 0.0353968379 | L76: 0.1199849666 | M76: 13475 | O76: 0.2837253205 | P76: 24.77262673
A77: 2021-10-31 | B77: 2577 | C77: CTS | D77: 1155.37032 | E77: 45 | F77: CTS CORP | G77: 454.309 | H77: 38.886 | I77: 826.831 | J77: 773.414 | K77: 0.0690665025 | L77: 0.1838512021 | M77: 35.359 | O77: 0.0502783761 | P77: 25.01029026
A78: 2021-10-31 | B78: 2578 | C78: TLS | D78: 1729.62205 | E78: 45 | F78: TELOS CORP/MD | G78: 164.7 | H78: -29.842 | I78: 164.7 | J78: 96.55 | K78: 0.7058518902 | L78: 0.7058518902 | M78: -230.953 | O78: -0.309083376 | P78: 82.89250351
A79: 2021-10-31 | B79: 2593 | C79: CBT | D79: 3026.17205 | E79: 15 | F79: CABOT CORP | G79: 955 | H79: -51 | I79: 959 | J79: 934 | K79: 0.0267665953 | L79: 0.1340762042 | M79: 408 | O79: -0.054603854 | P79: 36.25443408
A80: 2021-10-31 | B80: 2596 | C80: CACI | D80: 6775.07256 | E80: 20 | F80: CACI INTL INC -CL A | G80: 2665.143 | H80: 457.443 | I80: 3641.324 | J80: 3237.356 | K80: 0.1247833108 | L80: 0.0566591994 | M80: 572.133 | O80: 0.14130142 | P80: 12.73095241
A81: 2021-10-31 | B81: 2628 | C81: CWT | D81: 3094.8348 | E81: 55 | F81: CALIFORNIA WATER SERVICE GP | G81: 929.802 | H81: 114.106 | I81: 929.802 | J81: 755.14 | K81: 0.2312975077 | L81: 0.1435163983 | M81: -118.432 | O81: 0.1511057552 | P81: 19.81883537
A82: 2021-10-31 | B82: 2663 | C82: CPB | D82: 12064.9 | E82: 30 | F82: CAMPBELL SOUP CO | G82: 3152 | H82: 1008 | I82: 4173 | J82: 3586 | K82: 0.1636921361 | L82: -0.024738235 | M82: 567 | O82: 0.28109314 | P82: 13.00977258
A83: 2021-10-31 | B83: 2710 | C83: STZ | D83: 40734.47961 | E83: 30 | F83: CONSTELLATION BRANDS | G83: 11192.7 | H83: 757.2 | I83: 15282.3 | J83: 14482.5 | K83: 0.0552252719 | L83: 0.08153973 | M83: 3747.9 | O83: 0.0522837908 | P83: 24.30131527
A84: 2021-10-31 | B84: 2751 | C84: CAH | D84: 13912.71 | E84: 35 | F84: CARDINAL HEALTH INC | G84: 1791 | H84: 611 | I84: 3977 | J84: 3855 | K84: 0.0316472114 | L84: 0.0624174416 | M84: 2272 | O84: 0.1584954604 | P84: 22.01729821
A85: 2021-10-31 | B85: 2771 | C85: CSL | D85: 11614.132 | E85: 20 | F85: CARLISLE COS INC | G85: 2544.8 | H85: 340.9 | I85: 4589.2 | J85: 4256.5 | K85: 0.0781628098 | L85: 0.0399963009 | M85: 1670 | O85: 0.0800892752 | P85: 22.32224482
A86: 2021-10-31 | B86: 2787 | C86: CRS | D86: 1488.01456 | E86: 15 | F86: CARPENTER TECHNOLOGY CORP | G86: 1367.6 | H86: -197.3 | I86: 1678.9 | J86: 1726.8 | K86: -0.027739171 | L86: -0.225295023 | M86: -5.8 | O86: -0.114257586 | P86: 84.2156047
A87: 2021-10-31 | B87: 2807 | C87: CASY | D87: 7106.51708 | E87: 30 | F87: CASEYS GENERAL STORES INC | G87: 2030.665 | H87: 311.467 | I87: 2030.665 | J87: 1751.238 | K87: 0.1595596943 | L87: 0.13761086 | M87: 329.28 | O87: 0.1778553229 | P87: 18.58941432
A88: 2021-10-31 | B88: 2817 | C88: CAT | D88: 111689.5587 | E88: 20 | F88: CATERPILLAR INC | G88: 16833 | H88: 4391 | I88: 42073 | J88: 39146 | K88: 0.0747713687 | L88: -0.013796364 | M88: 7733 | O88: 0.1121698258 | P88: 22.52906851
A89: 2021-10-31 | B89: 2820 | C89: CVCO | D89: 2206.20764 | E89: 25 | F89: CAVCO INDUSTRIES INC | G89: 699.067 | H89: 87.018 | I89: 713.35 | J89: 624.007 | K89: 0.1431762785 | L89: 0.1245937182 | M89: 18.166 | O89: 0.1394503587 | P89: 20.25617732
A90: 2021-10-31 | B90: 2884 | C90: LUMN | D90: 13107.50596 | E90: 50 | F90: LUMEN TECHNOLOGIES INC | G90: 11706 | H90: -942 | I90: 11706 | J90: 13462 | K90: -0.130441242 | L90: -0.062557881 | M90: 15 | O90: -0.069974744 | P90: 27.47247978
A91: 2021-10-31 | B91: 2940 | C91: MGLN | D91: 2490.70995 | E91: 35 | F91: MAGELLAN HEALTH INC | G91: 1923.821 | H91: -19.946 | I91: 3388.548 | J91: 3007.696 | K91: 0.1266258292 | L91: 0.0493318378 | M91: -24.141 | O91: -0.006631654 | P91: 18.22920741
A92: 2021-10-31 | B92: 2960 | C92: CHE | D92: 7553.964 | E92: 35 | F92: CHEMED CORP | G92: 870.774 | H92: 303.396 | I92: 2873.1 | J92: 2495.995 | K92: 0.1510840366 | L92: 0.0496146831 | M92: 638.814 | O92: 0.1215531281 | P92: 19.12773546
A93: 2021-10-31 | B93: 2968 | C93: JPM | D93: 507657.653 | E93: 40 | F93: JPMORGAN CHASE & CO | G93: 286386 | H93: 47827 | I93: 384690 | J93: 352803 | K93: 0.0903818845 | L93: -0.084121058 | M93: 74687 | O93: 0.1355629062 | P93: 6.093509942
A94: 2021-10-31 | B94: 2986 | C94: CPK | D94: 2302.63776 | E94: 55 | F94: CHESAPEAKE UTILITIES CORP | G94: 741.564 | H94: 79.227 | I94: 748.767 | J94: 598.936 | K94: 0.2501619539 | L94: 0.1399499516 | M94: -141.117 | O94: 0.1322795758 | P94: 20.75133741
A95: 2021-10-31 | B95: 2991 | C95: CVX | D95: 221413.5849 | E95: 10 | F95: CHEVRON CORP | G95: 133182 | H95: 3587 | I95: 173981 | J95: 180261 | K95: -0.034838373 | L95: 0.0091230084 | M95: 2677 | O95: 0.0198989243 | P95: 16.7118728
A96: 2021-10-31 | B96: 3007 | C96: EAT | D96: 1925.964 | E96: 25 | F96: BRINKER INTL INC | G96: -303.3 | H96: 131.6 | I96: 421.6 | J96: 272.7 | K96: 0.5460212688 | L96: 0.0842293325 | M96: 688.274 | O96: 0.4825815915 | P96: 10.13422103
A97: 2021-10-31 | B97: 3026 | C97: CHD | D97: 21433.95072 | E97: 30 | F97: CHURCH & DWIGHT INC | G97: 3377.2 | H97: 805.4 | I97: 5648.7 | J97: 5036.1 | K97: 0.1216417466 | L97: 0.0986697437 | M97: 1051.9 | O97: 0.1599253391 | P97: 22.04505696
A98: 2021-10-31 | B98: 3028 | C98: CHDN | D98: 8855 | E98: 25 | F98: CHURCHILL DOWNS INC | G98: 317.4 | H98: 204 | I98: 317.4 | J98: 320.1 | K98: -0.008434864 | L98: 0.4200409796 | M98: 1126.3 | O98: 0.6373008435 | P98: 24.82132273
A99: 2021-10-31 | B99: 3062 | C99: CTAS | D99: 44751.7899 | E99: 20 | F99: CINTAS CORP | G99: 3309.203 | H99: 1142.142 | I99: 9704.696 | J99: 8855.952 | K99: 0.0958388212 | L99: 0.0350626076 | M99: 2407.168 | O99: 0.1289688562 | P99: 35.02692415
A100: 2021-10-31 | B100: 3105 | C100: IHRT | D100: 2743.31652 | E100: 50 | F100: IHEARTMEDIA INC | G100: 780.877 | H100: -302.655 | I100: 786.108 | J100: 1119.537 | K100: -0.297827584 | L100: 0.001700439 | M100: 1358.7079 | O100: -0.270339435 | P100: 78.01700185
A101: 2021-10-31 | B101: 3107 | C101: CLF | D101: 12056.35016 | E101: 15 | F101: CLEVELAND-CLIFFS INC | G101: 3996 | H101: 2156 | I101: 4079 | J101: 1165.4 | K101: 2.500085807 | L101: 2.500085807 | M101: 660.3 | O101: 1.850008581 | P101: 100
A102: 2021-10-31 | B102: 3121 | C102: CLX | D102: 20014.3678 | E102: 30 | F102: CLOROX CO/DE | G102: 411 | H102: 710 | I102: 1807 | J102: 4223 | K102: -0.572105139 | L102: 0.0922481774 | M102: 2268 | O102: 0.168126924 | P102: 62.56998115
A103: 2021-10-31 | B103: 3138 | C103: COKE | D103: 3762.3222 | E103: 30 | F103: COCA COLA CONSOLIDATED INC | G103: 612.502 | H103: 219.805 | I103: 673.756 | J103: 458.672 | K103: 0.4689276869 | L103: 0.0948102496 | M103: 0 | O103: 0.4792204451 | P103: 14.16721234
A104: 2021-10-31 | B104: 3144 | C104: KO | D104: 243236.55 | E104: 30 | F104: COCA-COLA CO | G104: 22249 | H104: 8079 | I104: 74080 | J104: 69555 | K104: 0.0650564302 | L104: 0.0607702616 | M104: 3046 | O104: 0.1161526849 | P104: 23.8178677
A105: 2021-10-31 | B105: 3153 | C105: CDE | D105: 1626.36057 | E105: 15 | F105: COEUR MINING INC | G105: 813.739 | H105: -8.682 | I105: 813.739 | J105: 664.227 | K105: 0.2250917232 | L105: 0.1343780245 | M105: -270.031 | O105: -0.013070833 | P105: 29.7040083
A106: 2021-10-31 | B106: 3157 | C106: COHR | D106: 6241.704 | E106: 45 | F106: COHERENT INC | G106: 839.456 | H106: -120.12 | I106: 839.456 | J106: 893.506 | K106: -0.060492039 | L106: 0.1321082109 | M106: 211.344 | O106: -0.134436702 | P106: 60.26513557
A107: 2021-10-31 | B107: 3158 | C107: COHU | D107: 1557.01584 | E107: 45 | F107: COHU INC | G107: 850.231 | H107: 130.918 | I107: 850.231 | J107: 466.758 | K107: 0.8215670647 | L107: 0.4481490341 | M107: -219.841 | O107: 0.2804836768 | P107: 20.81445855
A108: 2021-10-31 | B108: 3170 | C108: CL | D108: 64216.66531 | E108: 30 | F108: COLGATE-PALMOLIVE CO | G108: 591 | H108: 2665 | I108: 24407 | J108: 22933 | K108: 0.06427419 | L108: 0.073010766 | M108: 4183 | O108: 0.1162080844 | P108: 19.61971628
A109: 2021-10-31 | B109: 3203 | C109: CCF | D109: 907.2 | E109: 15 | F109: CHASE CORP | G109: 335.286 | H109: 43.305 | I109: 335.286 | J109: 291.493 | K109: 0.1502368839 | L109: 0.0439968582 | M109: 3.688 | O109: 0.1485627442 | P109: 18.28619407
A110: 2021-10-31 | B110: 3221 | C110: AON | D110: 72173.952 | E110: 40 | F110: AON PLC | G110: 4462 | H110: 2090 | I110: 4462 | J110: 3601 | K110: 0.2391002499 | L110: 0.071129326 | M110: 9123 | O110: 0.5803943349 | P110: 71.64216575
A111: 2021-10-31 | B111: 3226 | C111: CMCSA | D111: 236050.1739 | E111: 50 | F111: COMCAST CORP | G111: 94935 | H111: 12466 | I111: 102452 | J111: 91131 | K111: 0.12422776 | L111: 0.0326104463 | M111: 15361 | O111: 0.1367920905 | P111: 16.13300814
A112: 2021-10-31 | B112: 3231 | C112: CMA | D112: 11394.99753 | E112: 40 | F112: COMERICA INC | G112: 7931 | H112: 1104 | I112: 13780 | J112: 13271 | K112: 0.0383543064 | L112: -0.147025172 | M112: 3402 | O112: 0.0831889081 | P112: 3.563620519
A113: 2021-10-31 | B113: 3238 | C113: CBSH | D113: 8258.69528 | E113: 40 | F113: COMMERCE BANCSHARES INC | G113: 3485.62 | H113: 555.635 | I113: 3538.638 | J113: 3426.979 | K113: 0.0325823415 | L113: 0.0499535935 | M113: 623.931 | O113: 0.1621355135 | P113: 14.15500386
A114: 2021-10-31 | B114: 3243 | C114: C | D114: 140172.4506 | E114: 40 | F114: CITIGROUP INC | G114: 202159 | H114: 21583 | I114: 270412 | J114: 255765 | K114: 0.0572674134 | L114: -0.199296845 | M114: 63764 | O114: 0.0843860575 | P114: 2.031642798
A115: 2021-10-31 | B115: 3246 | C115: CMC | D115: 3880.48966 | E115: 15 | F115: COMMERCIAL METALS | G115: 2294.877 | H115: 412.865 | I115: 2447.459 | J115: 2064.264 | K115: 0.1856327485 | L115: 0.2288463807 | M115: 23.262 | O115: 0.2000059101 | P115: 11.73864812
A116: 2021-10-31 | B116: 3278 | C116: CAR | D116: 12079.707 | E116: 20 | F116: AVIS BUDGET GROUP INC | G116: 92 | H116: 183 | I116: 5244 | J116: 5023 | K116: 0.043997611 | L116: -0.107162089 | M116: 832 | O116: 0.0364324109 | P116: 32.85025707
A117: 2021-10-31 | B117: 3336 | C117: DXC | D117: 8272.25888 | E117: 45 | F117: DXC TECHNOLOGY CO | G117: 5077 | H117: 334 | I117: 5245 | J117: 4747 | K117: 0.1049083632 | L117: -0.094898119 | M117: 2096 | O117: 0.0703602275 | P117: 14.20975145
A118: 2021-10-31 | B118: 3362 | C118: CAG | D118: 15446.018 | E118: 30 | F118: CONAGRA BRANDS INC | G118: 8557 | H118: 1205.2 | I118: 11565.1 | J118: 10817.8 | K118: 0.0690805894 | L118: -0.016177949 | M118: 1633.2 | O118: 0.1114089741 | P118: 8.974951707
A119: 2021-10-31 | B119: 3382 | C119: SSTK | D119: 4432.99965 | E119: 25 | F119: SHUTTERSTOCK INC | G119: 474.896 | H119: 100.876 | I119: 579.781 | J119: 490.267 | K119: 0.182582144 | L119: 0.1479237494 | M119: 47.263 | O119: 0.205757271 | P119: 33.5555609
A120: 2021-10-31 | B120: 3413 | C120: ED | D120: 26616.2 | E120: 55 | F120: CONSOLIDATED EDISON INC | G120: 19743 | H120: 1120 | I120: 20781 | J120: 19263 | K120: 0.0788039246 | L120: 0.0547721901 | M120: -3558 | O120: 0.0581425531 | P120: 14.88826603
A121: 2021-10-31 | B121: 3439 | C121: CMS | D121: 17483.395 | E121: 55 | F121: CMS ENERGY CORP | G121: 6366 | H121: 849 | I121: 6366 | J121: 5251 | K121: 0.2123405066 | L121: 0.0445246691 | M121: -405 | O121: 0.1616834889 | P121: 17.31780465
A122: 2021-10-31 | B122: 3469 | C122: CLR | D122: 17940.79884 | E122: 10 | F122: CONTINENTAL RESOURCES INC | G122: 6586.088 | H122: 377.048 | I122: 6586.088 | J122: 6196.144 | K122: 0.062933334 | L122: 0.1862929444 | M122: 387.451 | O122: 0.0608520396 | P122: 24.92761236
A123: 2021-10-31 | B123: 3504 | C123: COO | D123: 20512.464 | E123: 35 | F123: COOPER COS INC (THE) | G123: 6785.2 | H123: 2915.6 | I123: 7425.5 | J123: 4378.2 | K123: 0.6960166278 | L123: 0.1655536892 | M123: 187.286 | O123: 0.6659357727 | P123: 3.511057816
A124: 2021-10-31 | B124: 3505 | C124: TAP | D124: 9563.121 | E124: 30 | F124: MOLSON COORS BEVERAGE CO | G124: 12984.8 | H124: -554.3 | I124: 13456.2 | J124: 13474.3 | K124: -0.001343298 | L124: -0.008198037 | M124: -35.7 | O124: -0.041137573 | P124: 16.53497106
A125: 2021-10-31 | B125: 3532 | C125: GLW | D125: 29807.66 | E125: 45 | F125: CORNING INC | G125: 11960 | H125: 1727 | I125: 31946 | J125: 31973 | K125: -0.000844463 | L125: 0.2159511473 | M125: 8238 | O125: 0.0540143246 | P125: 29.49898411
A126: 2021-10-31 | B126: 3562 | C126: CUZ | D126: 5889.53168 | E126: 60 | F126: COUSINS PROPERTIES INC | G126: 4445.092 | H126: 122.4 | I126: 4593.565 | J126: 4648.285 | K126: -0.011772084 | L126: -0.008120641 | M126: -211.521 | O126: 0.0263322924 | P126: 15.23366589
A127: 2021-10-31 | B127: 3570 | C127: CBRL | D127: 3129.09549 | E127: 25 | F127: CRACKER BARREL OLD CTRY STOR | G127: 663.633 | H127: 254.513 | I127: 663.633 | J127: 418.389 | K127: 0.5861626381 | L127: 0.1183815392 | M127: 112.174 | O127: 0.6083166622 | P127: 6.667139979
A128: 2021-10-31 | B128: 3580 | C128: CR | D128: 6054.79 | E128: 20 | F128: CRANE CO | G128: 1725.2 | H128: 317.5 | I128: 2325.8 | J128: 2026 | K128: 0.147976308 | L128: -0.015686275 | M128: 146.7 | O128: 0.1567127345 | P128: 18.30065404
A129: 2021-10-31 | B129: 3592 | C129: OMF | D129: 6781.06805 | E129: 40 | F129: ONEMAIN HOLDINGS INC | G129: 3121 | H129: 1410 | I129: 3297 | J129: 3123 | K129: 0.055715658 | L129: -0.009859155 | M129: 239 | O129: 0.4514889529 | P129: 4.121919156
A130: 2021-10-31 | B130: 3619 | C130: CCK | D130: 13743.00643 | E130: 15 | F130: CROWN HOLDINGS INC | G130: 2262 | H130: 597 | I130: 2530 | J130: 2070 | K130: 0.2222222222 | L130: 0.0201395636 | M130: 691 | O130: 0.2884057971 | P130: 30.7963169
A131: 2021-10-31 | B131: 3643 | C131: CFR | D131: 8242.157 | E131: 40 | F131: CULLEN/FROST BANKERS INC | G131: 4373.817 | H131: 417.409 | I131: 4424.989 | J131: 4156.626 | K131: 0.0645627006 | L131: -0.120571954 | M131: 49.505 | O131: 0.1004201485 | P131: 17.11384583
A132: 2021-10-31 | B132: 3650 | C132: CMI | D132: 34442.70288 | E132: 20 | F132: CUMMINS INC | G132: 7866 | H132: 2205 | I132: 16704 | J132: 14922 | K132: 0.1194209891 | L132: 0.1455787026 | M132: 4562 | O132: 0.1477683957 | P132: 14.84025797
A133: 2021-10-31 | B133: 3662 | C133: CW | D133: 5218.53696 | E133: 20 | F133: CURTISS-WRIGHT CORP | G133: 1894.704 | H133: 239.49 | I133: 2648.486 | J133: 2390.7 | K133: 0.1078286694 | L133: 0.0151461913 | M133: 524.78 | O133: 0.1001756808 | P133: 15.6613549
A134: 2021-10-31 | B134: 3708 | C134: WEN | D134: 4972.008 | E134: 25 | F134: WENDY'S CO | G134: 570.356 | H134: 185.577 | I134: 3213.717 | J134: 3064.641 | K134: 0.0486438705 | L134: 0.1242345293 | M134: 860.836 | O134: 0.0605542378 | P134: 19.01516487
A135: 2021-10-31 | B135: 3734 | C135: DAN | D135: 3200.44151 | E135: 25 | F135: DANA INC | G135: 1856 | H135: 212 | I135: 2040 | J135: 1859 | K135: 0.0973641743 | L135: 0.2569792412 | M135: 73 | O135: 0.1140398063 | P135: 23.67570643
A136: 2021-10-31 | B136: 3735 | C136: DHR | D136: 222759.665 | E136: 35 | F136: DANAHER CORP | G136: 43451 | H136: 5799.1 | I136: 43451 | J136: 37961 | K136: 0.1446221122 | L136: 0.3762829723 | M136: -7602 | O136: 0.1527646795 | P136: 24.54359406
A137: 2021-10-31 | B137: 3813 | C137: TGT | D137: 127123.1926 | E137: 25 | F137: TARGET CORP | G137: 14860 | H137: 6308 | I137: 14860 | J137: 12578 | K137: 0.18142789 | L137: 0.1851676845 | M137: 9423 | O137: 0.501510574 | P137: 18.43864548
A138: 2021-10-31 | B138: 3835 | C138: DE | D138: 106136.9809 | E138: 20 | F138: DEERE & CO | G138: 15731 | H138: 5438 | I138: 35511 | J138: 30559 | K138: 0.1620471874 | L138: 0.1882929562 | M138: 3338 | O138: 0.1779508492 | P138: 17.15487133
A139: 2021-10-31 | B139: 3851 | C139: DAL | D139: 25043.74782 | E139: 20 | F139: DELTA AIR LINES INC | G139: 2606 | H139: -67 | I139: 2887 | J139: 3629 | K139: -0.20446404 | L139: -0.006473678 | M139: 5923 | O139: -0.018462386 | P139: 100
A140: 2021-10-31 | B140: 3863 | C140: DLX | D140: 1517.29479 | E140: 20 | F140: DELUXE CORP | G140: 552.068 | H140: 90.471 | I140: 552.068 | J140: 485.269 | K140: 0.1376535489 | L140: -0.051795249 | M140: 390.608 | O140: 0.1864347403 | P140: 19.51954659
A141: 2021-10-31 | B141: 3905 | C141: ATGE | D141: 1818.91329 | E141: 25 | F141: ADTALEM GLOBAL EDUCATION INC | G141: 1301.07 | H141: 102.036 | I141: 2518.377 | J141: 2423.754 | K141: 0.0390398531 | L141: 0.0573944321 | M141: 619.896 | O141: 0.0420983318 | P141: 11.57220743
A142: 2021-10-31 | B142: 3964 | C142: DDS | D142: 4784.598 | E142: 25 | F142: DILLARDS INC -CL A | G142: 1609.579 | H142: 442.79 | I142: 5731.297 | J142: 5302.552 | K142: 0.0808563499 | L142: 0.0916331437 | M142: 878.549 | O142: 0.0835050745 | P142: 10.86181223
A143: 2021-10-31 | B143: 3969 | C143: DIOD | D143: 4298.20179 | E143: 45 | F143: DIODES INC | G143: 1082.584 | H143: 151.713 | I143: 1418.712 | J143: 1182.045 | K143: 0.2002182658 | L143: 0.2672721959 | M143: 309.499 | O143: 0.1283479055 | P143: 21.44238361
A144: 2021-10-31 | B144: 3980 | C144: DIS | D144: 307200.19 | E144: 50 | F144: DISNEY (WALT) CO | G144: 86741 | H144: 1154 | I144: 87648 | J144: 86773 | K144: 0.0100837818 | L144: -0.088706095 | M144: 12979 | O144: 0.0132990677 | P144: 56.60446513
A145: 2021-10-31 | B145: 4016 | C145: DG | D145: 51681.7236 | E145: 25 | F145: DOLLAR GENERAL CORP | G145: 6137.135 | H145: 2531.771 | I145: 6137.135 | J145: 7356.071 | K145: -0.165704763 | L145: 0.0761973964 | M145: 7490.13 | O145: 0.3441743561 | P145: 39.08187624
A146: 2021-10-31 | B146: 4029 | C146: D | D146: 61275.51 | E146: 55 | F146: DOMINION ENERGY INC | G146: 26550 | H146: 2424 | I146: 26550 | J146: 28871 | K146: -0.080392089 | L146: -0.16576523 | M146: -7003 | O146: 0.0839596827 | P146: 34.25398463
A147: 2021-10-31 | B147: 4036 | C147: DCI | D147: 7502.63023 | E147: 20 | F147: DONALDSON CO INC | G147: 1137.1 | H147: 286.9 | I147: 2267 | J147: 2020.1 | K147: 0.1222216722 | L147: 0.1051533648 | M147: 514.3 | O147: 0.1420226721 | P147: 21.29054897
A148: 2021-10-31 | B148: 4058 | C148: DOV | D148: 24344.81472 | E148: 20 | F148: DOVER CORP | G148: 3891.818 | H148: 943.139 | I148: 10110.576 | J148: 9390.179 | K148: 0.0767181328 | L148: 0.1526101598 | M148: 1395.329 | O148: 0.1004388734 | P148: 19.29985166
A149: 2021-10-31 | B149: 4060 | C149: DD | D149: 36515.2224 | E149: 15 | F149: DUPONT DE NEMOURS INC | G149: 26877 | H149: 1284 | I149: 35922 | J149: 45229 | K149: -0.273692744 | L149: -0.107355288 | M149: 9045 | N149: 1 | O149: 0.0283888656 | P149: 8.443701395
A150: 2021-10-31 | B150: 4066 | C150: OMC | D150: 14471.01672 | E150: 50 | F150: OMNICOM GROUP | G150: 3279 | H150: 1389.7 | I150: 8175.3 | J150: 7338.4 | K150: 0.1140439333 | L150: 0.046867277 | M150: 2346.1 | O150: 0.1893737054 | P150: 8.564104817
A151: 2021-10-31 | B151: 4093 | C151: DUK | D151: 78445.69 | E151: 55 | F151: DUKE ENERGY CORP | G151: 48132 | H151: 2991 | I151: 48132 | J151: 45484 | K151: 0.0582182746 | L151: 0.0059394585 | M151: -7658 | O151: 0.0657593879 | P151: 15.43021155
A152: 2021-10-31 | B152: 4094 | C152: DNB | D152: 8121.84864 | E152: 20 | F152: DUN & BRADSTREET HOLDNGS INC | G152: 3587.9 | H152: -86.7 | I152: 3588.2 | J152: 2567.4 | K152: 0.3976006855 | L152: 0.0872161152 | M152: -1361.6 | O152: -0.033769572 | P152: 31.38557125
A153: 2021-10-31 | B153: 4108 | C153: FLS | D153: 4370.23018 | E153: 20 | F153: FLOWSERVE CORP | G153: 1759.504 | H153: 166.111 | I153: 3817.672 | J153: 3733.087 | K153: 0.0226581915 | L153: -0.053551603 | M153: 79.179 | O153: 0.0444969539 | P153: 10.54217929
A154: 2021-10-31 | B154: 4115 | C154: DY | D154: 2396.1014 | E154: 20 | F154: DYCOM INDUSTRIES INC | G154: 780.421 | H154: 48.794 | I154: 780.421 | J154: 873.748 | K154: -0.106812262 | L154: -0.056435014 | M154: 316.436 | O154: 0.0558444769 | P154: 37.94031839
A155: 2021-10-31 | B155: 4145 | C155: PKI | D155: 19816.10225 | E155: 35 | F155: PERKINELMER INC | G155: 4239.807 | H155: 1182.481 | I155: 4239.807 | J155: 2967.463 | K155: 0.4287649079 | L155: 0.6310220649 | M155: 27.827 | O155: 0.3984821378 | P155: 24.45314129
A156: 2021-10-31 | B156: 4193 | C156: EGP | D156: 7989.52088 | E156: 60 | F156: EASTGROUP PROPERTIES | G156: 1372.441 | H156: 116.479 | I156: 1372.441 | J156: 1215.081 | K156: 0.1295057696 | L156: 0.0951673033 | M156: -783.066 | O156: 0.095861099 | P156: 38.42418629
A157: 2021-10-31 | B157: 4199 | C157: ETN | D157: 65673.336 | E157: 20 | F157: EATON CORP PLC | G157: 15408 | H157: 1885 | I157: 15408 | J157: 14188 | K157: 0.085988159 | L157: -0.004011043 | M157: 5097 | O157: 0.1328587539 | P157: 36.88595471
A158: 2021-10-31 | B158: 4213 | C158: ECL | D158: 63574.25314 | E158: 15 | F158: ECOLAB INC | G158: 6709.1 | H158: 1050.9 | I158: 13458.7 | J158: 12495.1 | K158: 0.0771182303 | L158: -0.091116139 | M158: 1131.8 | O158: 0.0841049691 | P158: 71.21705023
A159: 2021-10-31 | B159: 4321 | C159: EMR | D159: 57992.578 | E159: 20 | F159: EMERSON ELECTRIC CO | G159: 9291 | H159: 2356 | I159: 25366 | J159: 23768 | K159: 0.0672332548 | L159: 0.0377369462 | M159: 3906 | O159: 0.0991248738 | P159: 19.18326885
A160: 2021-10-31 | B160: 4367 | C160: WFRD | D160: 2034.2 | E160: 10 | F160: WEATHERFORD INTL PLC | G160: 726 | H160: -568 | I160: 726 | J160: -1359 | L160: -0.418656588 | M160: -1071
A161: 2021-10-31 | B161: 4383 | C161: ATO | D161: 12048.09844 | E161: 55 | F161: ATMOS ENERGY CORP | G161: 7773.758 | H161: 682.176 | I161: 7773.758 | J161: 6461.471 | K161: 0.2030941561 | L161: 0.1878608096 | M161: -2377.7 | O161: 0.1055759594 | P161: 17.65464842
A162: 2021-10-31 | B162: 4384 | C162: MARA | D162: 5204.88016 | E162: 45 | F162: MARATHON DIGITAL HOLDNGS INC | G162: 580.519 | H162: -32.757 | I162: 580.519 | J162: 9.658 | K162: 59.10757921 | M162: -563.233 | O162: -3.391696003
A163: 2021-10-31 | B163: 4423 | C163: EFX | D163: 33846.46 | E163: 20 | F163: EQUIFAX INC | G163: 3539.2 | H163: 696.5 | I163: 6175.9 | J163: 5485.3 | K163: 0.1259001331 | L163: 0.2233007229 | M163: 103.9 | O163: 0.1269757351 | P163: 26.55076215
A164: 2021-10-31 | B164: 4430 | C164: EQT | D164: 7521.04232 | E164: 10 | F164: EQT CORP | G164: 8248.46 | H164: -2893.404 | I164: 8266.662 | J164: 8875.156 | K164: -0.068561499 | L164: -0.310656302 | M164: 205.641 | O164: -0.326011622 | P164: 100
A165: 2021-10-31 | B165: 4462 | C165: NEU | D165: 3616.68637 | E165: 15 | F165: NEWMARKET CORP | G165: 772.773 | H165: 240.586 | I165: 772.773 | J165: 723.526 | K165: 0.0680652803 | L165: 0.1436011687 | M165: 451.159 | O165: 0.3325188037 | P165: 15.02355186
A166: 2021-10-31 | B166: 4494 | C166: EXPD | D166: 20807.27408 | E166: 20 | F166: EXPEDITORS INTL WASH INC | G166: 2874.794 | H166: 861.016 | I166: 2874.794 | J166: 2034.806 | K166: 0.4128098698 | L166: 0.4362434824 | M166: 1336.88 | O166: 0.4231440245 | P166: 13.43827002
A167: 2021-10-31 | B167: 4503 | C167: XOM | D167: 272937.8066 | E167: 10 | F167: EXXON MOBIL CORP | G167: 158571 | H167: -13330 | I167: 384342 | J167: 406319 | K167: -0.054088044 | L167: 0.0037454935 | M167: 2624 | O167: -0.032806736 | P167: 17.81555008
A168: 2021-10-31 | B168: 4510 | C168: FMC | D168: 11712.89599 | E168: 15 | F168: FMC CORP | G168: 3110.7 | H168: 579.1 | I168: 5352.5 | J168: 4915 | K168: 0.0890132248 | L168: 0.0124542442 | M168: 687.5 | O168: 0.1178229908 | P168: 16.61291428
A169: 2021-10-31 | B169: 4517 | C169: NEE | D169: 167429.1502 | E169: 55 | F169: NEXTERA ENERGY INC | G169: 36649 | H169: 2364 | I169: 36649 | J169: 37287 | K169: -0.017110521 | L169: -0.097416163 | M169: -2739 | O169: 0.0634001126 | P169: 73.69814434
A170: 2021-10-31 | B170: 4598 | C170: FDX | D170: 62567.83791 | E170: 20 | F170: FEDEX CORP | G170: 24321 | H170: 5098 | I170: 33223 | J170: 28495 | K170: 0.1659238463 | L170: 0.2119317387 | M170: 1723 | O170: 0.1789085805 | P170: 14.31275542
A171: 2021-10-31 | B171: 4605 | C171: FRT | D171: 9358.53635 | E171: 60 | F171: FEDERAL REALTY INVESTMENT TR | G171: 2490.089 | H171: 160.876 | I171: 2490.089 | J171: 2434.284 | K171: 0.0229246053 | L171: 0.0125975072 | M171: -796.192 | O171: 0.0660876052 | P171: 35.62491429
A172: 2021-10-31 | B172: 4608 | C172: FSS | D172: 2617.06092 | E172: 20 | F172: FEDERAL SIGNAL CORP | G172: 746 | H172: 103.2 | I172: 875.8 | J172: 770.8 | K172: 0.1362221069 | L172: 0.0073766322 | M172: 33.9 | O172: 0.1338868708 | P172: 23.09987233
A173: 2021-10-31 | B173: 4611 | C173: M | D173: 8271.875 | E173: 25 | F173: MACY'S INC | G173: 3146 | H173: 516 | I173: 4212 | J173: 3500 | K173: 0.2034285714 | L173: 0.0539696271 | M173: 123 | O173: 0.1474285714 | P173: 12.92347012
A174: 2021-10-31 | B174: 4622 | C174: FOE | D174: 1738.4591 | E174: 15 | F174: FERRO CORP | G174: 504.006 | H174: 50.362 | I174: 669.695 | J174: 525.325 | K174: 0.2748203493 | L174: 0.1402119323 | M174: 45.569 | O174: 0.095868272 | P174: 20.92275438
A175: 2021-10-31 | B175: 4640 | C175: FITB | D175: 30633.8022 | E175: 40 | F175: FIFTH THIRD BANCORP | G175: 22926 | H175: 2587 | I175: 29086 | J175: 28018 | K175: 0.0381183525 | L175: -0.068592058 | M175: 5156 | O175: 0.0923334999 | P175: 5.811355363
A176: 2021-10-31 | B176: 4674 | C176: RF | D176: 22602.89152 | E176: 40 | F176: REGIONS FINANCIAL CORP | G176: 18252 | H176: 2578 | I176: 19623 | J176: 18973 | K176: 0.0342592105 | L176: 0.0156344869 | M176: 4472 | O176: 0.1358772993 | P176: 7.249998663
A177: 2021-10-31 | B177: 4685 | C177: TRMK | D177: 1996.80913 | E177: 40 | F177: TRUSTMARK CORP | G177: 1779.309 | H177: 205.6 | I177: 1779.309 | J177: 1673.944 | K177: 0.0629441606 | L177: 0.0067929315 | M177: 178.713 | O177: 0.1228237026 | P177: 7.003803657
A178: 2021-10-31 | B178: 4690 | C178: FCNCA | D178: 7989.2424 | E178: 40 | F178: FIRST CITIZENS BANCSH -CL A | G178: 4476.49 | H178: 580.872 | I178: 4476.49 | J178: 3991.444 | K178: 0.1215214343 | L178: 0.0544482297 | M178: 610.036 | O178: 0.1455292871 | P178: 11.29729446
A179: 2021-10-31 | B179: 4699 | C179: MTB | D179: 18930.07752 | E179: 40 | F179: M & T BANK CORP | G179: 16720.304 | H179: 1748.594 | I179: 21804.819 | J179: 21094.223 | K179: 0.0336867587 | L179: -0.077647131 | M179: 5501.67 | O179: 0.0828944493 | P179: 4.770125704
A180: 2021-10-31 | B180: 4723 | C180: USB | D180: 89504.74311 | E180: 40 | F180: US BANCORP | G180: 53039 | H180: 7361 | I180: 80344 | J180: 77812 | K180: 0.0325399681 | L180: -0.098691365 | M180: 13411 | O180: 0.0945998047 | P180: 5.89162487
A181: 2021-10-31 | B181: 4737 | C181: FHN | D181: 9365.14905 | E181: 40 | F181: FIRST HORIZON CORP | G181: 8271 | H181: 1317.566 | I181: 8271 | J181: 4912.954 | K181: 0.6835085368 | L181: 0.5088131139 | M181: 26.882 | O181: 0.2681820347 | P181: 34.10322034
A182: 2021-10-31 | B182: 4809 | C182: FLO | D182: 5240.88675 | E182: 30 | F182: FLOWERS FOODS INC | G182: 1425.13 | H182: 228.184 | I182: 1649.005 | J182: 1561.902 | K182: 0.0557672632 | L182: 0.0170291986 | M182: -23.2 | O182: 0.146093673 | P182: 23.19270251
A183: 2021-10-31 | B183: 4818 | C183: FLR | D183: 2749.12704 | E183: 20 | F183: FLUOR CORP | G183: 1515.549 | H183: -163.501 | I183: 1515.549 | J183: 1091.722 | K183: 0.3882187956 | L183: -0.134664333 | M183: -541.162 | O183: -0.149764317 | P183: 76.05535657
A184: 2021-10-31 | B184: 4839 | C184: F | D184: 68255.79628 | E184: 25 | F184: FORD MOTOR CO | G184: 36593 | H184: 2867 | I184: 38167 | J184: 34721 | K184: 0.0992482935 | L184: 0.0283254524 | M184: 532 | O184: 0.0825725066 | P184: 16.19053173
A185: 2021-10-31 | B185: 4881 | C185: FELE | D185: 4012.7829 | E185: 20 | F185: FRANKLIN ELECTRIC CO INC | G185: 901.299 | H185: 132.187 | I185: 901.299 | J185: 773.864 | K185: 0.1646736377 | L185: 0.1600761685 | M185: 47.987 | O185: 0.1708142516 | P185: 22.05051867
A186: 2021-10-31 | B186: 4885 | C186: BEN | D186: 15835.40779 | E186: 40 | F186: FRANKLIN RESOURCES INC | G186: 10875.2 | H186: 1244.4 | I186: 10875.2 | J186: 10114.2 | K186: 0.0752407506 | L186: 0.4697306922 | M186: 3434.4 | O186: 0.123034941 | P186: 50.42308243
A187: 2021-10-31 | B187: 4926 | C187: FUL | D187: 3705.3005 | E187: 15 | F187: FULLER (H. B.) CO | G187: 1567.289 | H187: 151.113 | I187: 1567.289 | J187: 1313.391 | K187: 0.1933148621 | L187: 0.1477293417 | M187: -23.738 | O187: 0.115055608 | P187: 17.9370369
A188: 2021-10-31 | B188: 4941 | C188: GATX | D188: 3364.5192 | E188: 20 | F188: GATX CORP | G188: 1971.4 | H188: 108 | I188: 3335.9 | J188: 3239.8 | K188: 0.0296623248 | L188: -0.064601837 | M188: 415.6 | O188: 0.0333353911 | P188: 9.670976663
A189: 2021-10-31 | B189: 4973 | C189: AJG | D189: 34665.7725 | E189: 40 | F189: ARTHUR J GALLAGHER & CO | G189: 8312.7 | H189: 891.1 | I189: 8312.7 | J189: 5488.6 | K189: 0.5145392268 | L189: 0.0934190782 | M189: -1853.1 | O189: 0.1623546988 | P189: 24.32611004
A190: 2021-10-31 | B190: 4988 | C190: TGNA | D190: 4344.4668 | E190: 50 | F190: TEGNA INC | G190: 2258.956 | H190: 595.767 | I190: 7483.013 | J190: 7054.391 | K190: 0.0607596035 | L190: 0.2505535111 | M190: 52.748 | O190: 0.0844533568 | P190: 33.63720439
A191: 2021-10-31 | B191: 4990 | C191: GPS | D191: 8531.44 | E191: 25 | F191: GAP INC | G191: 3020 | H191: 753 | I191: 3020 | J191: 2253 | K191: 0.3404349756 | L191: 0.1825814715 | M191: 857 | O191: 0.3342210386 | P191: 8.543216459
A192: 2021-10-31 | B192: 5018 | C192: AJRD | D192: 3525.201 | E192: 20 | F192: AEROJET ROCKETDYNE HOLDINGS | G192: 400.3 | H192: 141.1 | I192: 464.7 | J192: 733.9 | K192: -0.366807467 | L192: 0.0566888976 | M192: 64.2 | O192: 0.192260526 | P192: 48.26527906
A193: 2021-10-31 | B193: 5046 | C193: GD | D193: 56612.46325 | E193: 20 | F193: GENERAL DYNAMICS CORP | G193: 15721 | H193: 3307 | I193: 34997 | J193: 32521 | K193: 0.0761354202 | L193: 0.0115393673 | M193: 5738 | O193: 0.10168814 | P193: 12.84009203
A194: 2021-10-31 | B194: 5047 | C194: GE | D194: 115161.6272 | E194: 20 | F194: GENERAL ELECTRIC CO | G194: 37477 | H194: 2738 | I194: 118791 | J194: 115394 | K194: 0.0294382724 | L194: -0.097381089 | M194: 5998 | O194: 0.0237274035 | P194: 8.579738568
A195: 2021-10-31 | B195: 5071 | C195: GIS | D195: 37469.34 | E195: 30 | F195: GENERAL MILLS INC | G195: 9692.3 | H195: 2327.9 | I195: 16407.3 | J195: 14814.8 | K195: 0.1074938575 | L195: 0.0175004586 | M195: 604.2 | O195: 0.1571334071 | P195: 14.37630342
A196: 2021-10-31 | B196: 5072 | C196: ALLY | D196: 17312.38586 | E196: 40 | F196: ALLY FINANCIAL INC | G196: 17530 | H196: 2858 | I196: 21445 | J196: 17018 | K196: 0.2601363262 | L196: -0.027705081 | M196: 1573 | O196: 0.1679398284 | P196: 3.218340855
A197: 2021-10-31 | B197: 5073 | C197: GM | D197: 81645 | E197: 25 | F197: GENERAL MOTORS CO | G197: 51669 | H197: 12749 | I197: 51669 | J197: 39304 | K197: 0.314599023 | L197: 0.2060093621 | M197: 3035 | O197: 0.324369021 | P197: 6.122282164
A198: 2021-10-31 | B198: 5087 | C198: SPXC | D198: 2631.70936 | E198: 20 | F198: SPX CORP | G198: 728.2 | H198: 83.3 | I198: 1172.5 | J198: 1003.7 | K198: 0.1681777424 | L198: -0.096849024 | M198: 14.5 | O198: 0.0829929262 | P198: 24.79222216
A199: 2021-10-31 | B199: 5109 | C199: GCO | D199: 915.45431 | E199: 25 | F199: GENESCO INC | G199: 588.097 | H199: 117.288 | I199: 605.954 | J199: 478.721 | K199: 0.2657769348 | L199: 0.1722110804 | M199: 303.095 | O199: 0.2450028305 | P199: 7.948822776
A200: 2021-10-31 | B200: 5116 | C200: GNTX | D200: 8457.04213 | E200: 25 | F200: GENTEX CORP | G200: 1916.319 | H200: 460.389 | I200: 1916.319 | J200: 1822.608 | K200: 0.0514158832 | L200: 0.1937027965 | M200: 1272.29 | O200: 0.2525990229 | P200: 17.3126511
... 2162 more rows

Sheet Appendix
A7: The information, data, analyses and opinions presented herein (a) do not constitute investment advice, (b) are provided solely for informational purposes and therefore are not, individually or collectively, an offer to buy or sell a security, (c) are not warranted to be correct, complete or accurate, and (d) are subject to change without notice. Kailash Capital, LLC and its affiliates (collectively, “Kailash Capital”) shall not be responsible for any trading decisions, damages or other losses resulting from, or related to, the information, data, analyses or opinions or their use. The information herein may not be reproduced or retransmitted in any manner without the prior written consent of Kailash Capital.
A9: Kailash Capital, in preparing the information, data, analyses and opinions presented herein, has obtained data, statistics and information from sources it believes to be reliable. Kailash Capital, however, does not perform an audit or seeks independent verification of any of the data, statistics, and information it receives.
A11: Kailash Capital and its affiliates do not provide tax, legal or accounting advice. This material has been prepared for informational purposes only, and is not intended to provide, and should not be relied on for, tax, legal or accounting advice. You should consult your own tax, legal and accounting advisors before engaging in any transaction.
A14: © 2021 Kailash Capital, LLC – All rights reserved.
